bitfinex/quotes_SOLUSD_20250417
["timestamp","ask_amount","ask_price","bid_price","bid_amount"]
[1744925669511,26.09992542,134.1,134.06,11.93046074]
[1744925671233,18.64280387,134.1,134.06,11.93046074]
[1744925675143,7.4565655,134.11,134.07,11.93046074]
[1744925678138,18.64013444,134.12,134.07,11.93046074]
[1744925679422,26.09614398,134.12,134.07,11.93046074]
[1744925681924,26.09614398,134.12,134.08,11.93046074]
[1744925688549,26.09614398,134.12,134.07,11.93046074]
[1744925695469,30.57059518,134.12,134.07,11.93046074]
[1744925697149,38.02660472,134.12,134.07,11.93046074]
[1744925706259,7.45712155,134.1,134.07,11.93046074]
[1744925708152,26.09614398,134.12,134.07,11.93046074]
[1744925708753,2.76041176,134.11,134.07,11.93046074]
[1744925709954,2.76041176,134.1,134.07,11.93046074]
[1744925710155,7.45767767,134.09,134.07,11.93046074]
[1744925711663,7.45767767,134.09,134.05,15.48648471]
[1744925711866,7.45767767,134.09,134.07,11.93046074]
[1744925712259,30.57059518,134.12,134.07,11.93046074]
[1744925712468,2.75514689,134.11,134.07,11.93046074]
[1744925713564,2.75514689,134.1,134.07,11.93046074]
[1744925714369,7.45767767,134.09,134.07,11.93046074]
[1744925715351,7.45767767,134.09,134.08,11.93046074]
[1744925715550,26.09614398,134.12,134.08,11.93046074]
[1744925716576,2.75318648,134.11,134.08,11.93046074]
[1744925717974,26.09614398,134.12,134.08,11.93046074]
[1744925718753,2.75235821,134.11,134.08,11.93046074]
[1744925719255,26.09614398,134.12,134.08,11.93046074]
[1744925721184,2.75250204,134.11,134.08,11.93046074]
[1744925722086,26.09614398,134.12,134.08,11.93046074]
[1744925722457,18.64013444,134.12,134.08,11.93046074]
[1744925723978,2.75300709,134.11,134.08,11.93046074]
[1744925724777,7.45712155,134.1,134.08,11.93046074]
[1744925726981,18.64013444,134.12,134.08,11.93046074]
[1744925727677,2.75084501,134.11,134.08,11.93046074]
[1744925728381,18.64013444,134.12,134.08,11.93046074]
[1744925730782,18.64013444,134.12,134.07,11.93046074]
[1744925734678,18.64013444,134.12,134.06,11.93046074]
[1744925735186,7.48545366,134.13,134.08,0.42648471]
[1744925735386,7.48545366,134.13,134.09,11.93046074]
[1744925735687,7.48545366,134.13,134.1,11.93046074]
[1744925735897,7.48545366,134.13,134.11,11.93046074]
[1744925736575,7.48545366,134.13,134.1,37.93046074]
[1744925742397,7.48545366,134.13,134.11,11.93046074]
[1744925743680,0.03,134.13,134.11,11.93046074]
[1744925745887,0.03,134.13,134.1,37.93046074]
[1744925751103,0.03,134.13,134.11,11.93046074]
[1744925760609,0.03,134.13,134.1,11.93046074]
[1744925760809,11.93046074,134.12,134.09,41.04]
[1744925761108,11.93046074,134.1,134.09,15.04]
[1744925761311,11.93046074,134.1,134.06,38.21478388]
[1744925761606,11.93046074,134.11,134.06,37.93046074]
[1744925761814,0.03,134.13,134.06,37.93046074]
[1744925762012,11.93046074,134.11,134.07,11.93046074]
[1744925762205,11.93046074,134.12,134.07,11.93046074]
[1744925762411,11.93046074,134.12,134.08,11.93046074]
[1744925762611,11.96046074,134.13,134.08,11.93046074]
[1744925763505,0.03,134.13,134.08,11.93046074]
[1744925763706,11.96046074,134.13,134.08,11.93046074]
[1744925765017,7.45600954,134.12,134.08,11.93046074]
[1744925765321,7.45600954,134.12,134.07,0.42648471]
[1744925765521,7.45600954,134.12,134.08,11.93046074]
[1744925766318,7.45600954,134.12,134.07,0.42648471]
[1744925766519,7.45600954,134.12,134.06,26.0]
[1744925766520,11.93046074,134.11,134.06,26.0]
[1744925766823,11.93046074,134.11,134.06,37.93046074]
[1744925767028,7.45712155,134.1,134.06,37.93046074]
[1744925768411,7.45712155,134.1,134.07,11.93046074]
[1744925769316,7.4565655,134.11,134.07,11.93046074]
[1744925772615,18.64002385,134.12,134.07,11.93046074]
[1744925772815,30.57048459,134.12,134.07,11.93046074]
[1744925774431,38.02649413,134.12,134.07,11.93046074]
[1744925775613,7.48573267,134.13,134.11,11.93046074]
[1744925775815,7.48573267,134.13,134.12,11.93046074]
[1744925776117,0.03,134.13,134.12,11.93046074]
[1744925777832,0.03,134.13,134.11,11.93046074]
[1744925778740,0.03,134.13,134.12,11.93046074]
[1744925783418,0.03,134.13,134.11,11.93046074]
[1744925786847,0.03,134.13,134.12,11.93046074]
[1744925793924,0.03,134.13,134.12,12.35694545]
[1744925794541,0.03,134.13,134.12,66.04359604]
[1744925794843,0.03,134.13,134.12,86.2470449]
[1744925796938,0.03,134.13,134.12,92.29399351]
[1744925799552,0.03,134.13,134.12,96.08605723]
[1744925799944,0.03,134.15,134.14,38.35694545]
[1744925805335,0.03,134.15,134.14,12.35694545]
[1744925806845,0.03,134.15,134.14,12.07262231]
[1744925807047,0.03,134.15,134.14,12.35694545]
[1744925817161,0.03,134.15,134.14,27.35694545]
[1744925819550,0.03,134.15,134.14,15.0]
[1744925827976,0.03,134.15,134.12,11.93046074]
[1744925833566,0.03,134.15,134.13,11.93046074]
[1744925838891,0.03,134.15,134.11,0.42648471]
[1744925839063,0.03,134.15,134.13,11.93046074]
[1744925854584,0.03,134.15,134.11,15.42648471]
[1744925854789,0.03,134.15,134.13,11.93046074]
[1744925858105,0.03,134.15,134.12,11.93046074]
[1744925860611,0.03,134.15,134.13,11.93046074]
[1744925860994,0.03,134.15,134.12,11.93046074]
[1744925862722,0.03,134.15,134.11,15.42648471]
[1744925863113,0.03,134.15,134.12,11.93046074]
[1744925872333,0.03,134.15,134.13,11.93046074]
[1744925872542,0.03,134.15,134.14,11.93046074]
[1744925888243,0.03,134.15,134.14,12.35694545]
[1744925888545,0.03,134.15,134.14,18.32086374]
[1744925889460,0.03,134.15,134.14,36.9705126]
[1744925889632,0.03,134.15,134.14,56.9705126]
[1744925893454,0.03,134.16,134.15,0.42648471]
[1744925893646,0.03,134.16,134.15,12.35694545]
[1744925894741,0.03,134.16,134.15,18.32041917]
[1744925896048,0.03,134.17,134.16,20.42648471]
[1744925896232,0.03,134.17,134.16,47.33694545]
[1744925897459,0.03,134.17,134.16,53.29997466]
[1744925898133,0.03,134.19,134.18,44.64964886]
[1744925898335,0.03,134.19,134.18,57.00659431]
[1744925899756,0.03,134.19,134.18,62.96873471]
[1744925901151,0.03,134.21,134.18,62.96873471]
[1744925901152,0.03,134.21,134.2,20.0]
[1744925901337,0.03,134.23,134.22,0.42648471]
[1744925901537,0.03,134.23,134.22,27.33694545]
[1744925901749,0.03,134.23,134.22,33.29730903]
[1744925903833,0.03,134.23,134.22,51.94695789]
[1744925904455,0.03,134.23,134.22,37.10552209]
[1744925904657,0.03,134.23,134.22,55.75517095]
[1744925905760,0.03,134.23,134.22,87.75078023]
[1744925906845,0.03,134.23,134.22,107.75078023]
[1744925907549,0.03,134.26,134.25,26.42648471]
[1744925907859,0.03,134.26,134.25,38.35694545]
[1744925909255,0.03,134.26,134.25,57.00659431]
[1744925909656,0.03,134.26,134.25,62.96562596]
[1744925910653,0.03,134.26,134.25,110.68746892]
[1744925911538,0.03,134.27,134.26,45.03472138]
[1744925911741,0.03,134.27,134.26,104.68702508]
[1744925912251,0.03,134.29,134.28,56.72227117]
[1744925912438,0.03,134.29,134.28,71.68227117]
[1744925913744,0.03,134.29,134.28,97.92429463]
[1744925915264,0.03,134.32,134.29,0.42648471]
[1744925915459,0.03,134.32,134.31,12.21478388]
[1744925917146,0.03,134.32,134.31,57.00659431]
[1744925917669,0.03,134.32,134.31,62.9629639]
[1744925918445,0.03,134.32,134.31,57.00659431]
[1744925920063,0.03,134.32,134.28,14.96]
[1744925920266,0.03,134.32,134.29,11.93046074]
[1744925920459,0.03,134.32,134.3,26.0]
[1744925920958,0.03,134.32,134.3,37.93046074]
[1744925924670,0.03,134.32,134.31,11.93046074]
[1744925926866,0.03,134.32,134.31,12.07262231]
[1744925934670,0.03,134.32,134.31,11.93046074]
[1744925934984,0.03,134.32,134.27,127.7921154]
[1744925934985,0.03,134.32,134.28,11.93046074]
[1744925935186,1.6663,134.3,134.27,14.96]
[1744925935367,13.59676074,134.3,134.24,232.02]
[1744925935568,13.59676074,134.3,134.25,11.93046074]
[1744925935771,7.44657085,134.29,134.25,37.93046074]
[1744925936574,26.06299798,134.29,134.25,26.0]
[1744925938079,26.06299798,134.29,134.25,37.93046074]
[1744925939786,26.06299798,134.29,134.25,26.0]
[1744925939986,18.20796074,134.28,134.24,14.96]
[1744925940186,13.51656074,134.27,134.22,11.93046074]
[1744925940390,11.93046074,134.26,134.21,26.95346074]
[1744925940597,1.5861,134.27,134.22,11.93046074]
[1744925940774,13.51656074,134.27,134.22,11.93046074]
[1744925941793,26.06882168,134.26,134.22,11.93046074]
[1744925943570,26.06882168,134.26,134.23,11.93046074]
[1744925943770,26.06882168,134.26,134.24,11.93046074]
[1744925943983,26.06882168,134.26,134.21,41.023]
[1744925943984,26.06882168,134.26,134.23,11.93046074]
[1744925950097,7.44823476,134.26,134.24,11.93046074]
[1744925950910,7.44823476,134.26,134.23,11.93046074]
[1744925952414,7.44823476,134.26,134.24,11.93046074]
[1744925957210,9.03402211,134.27,134.24,11.93046074]
[1744925957416,7.44792211,134.27,134.26,11.93046074]
[1744925958090,7.44792211,134.27,134.25,11.93046074]
[1744925958702,13.72489456,134.28,134.26,11.93046074]
[1744925963821,13.72489456,134.28,134.25,11.93046074]
[1744925966208,13.72489456,134.28,134.26,11.93046074]
[1744925968128,20.25463729,134.3,134.27,11.93046074]
[1744925968129,7.44675564,134.29,134.27,11.93046074]
[1744925970118,7.44675564,134.29,134.28,11.93046074]
[1744925971424,7.44546199,134.31,134.27,11.93046074]
[1744925975535,7.44546199,134.31,134.28,11.93046074]
[1744925979940,7.44546199,134.31,134.27,11.93046074]
[1744925981144,7.44546199,134.31,134.28,11.93046074]
[1744925985643,7.44546199,134.31,134.29,11.93046074]
[1744925987645,26.08746709,134.32,134.29,11.93046074]
[1744925989429,7.47490768,134.32,134.29,11.93046074]
[1744925992743,7.47490768,134.32,134.3,11.93046074]
[1744925994634,7.47490768,134.32,134.31,11.93046074]
[1744925995149,0.03,134.32,134.31,12.35694545]
[1744925998537,0.03,134.32,134.31,36.2184177]
[1744926000335,0.03,134.32,134.31,12.07262231]
[1744926000537,0.03,134.32,134.25,22.20453212]
[1744926000738,11.96046074,134.32,134.27,11.93046074]
[1744926000941,0.03,134.32,134.28,11.93046074]
[1744926001142,0.03,134.32,134.26,26.0]
[1744926001342,0.03,134.32,134.28,11.93046074]
[1744926001654,11.96046074,134.32,134.27,11.93046074]
[1744926002353,37.9895777,134.31,134.26,37.93046074]
[1744926002547,26.05911696,134.31,134.27,11.93046074]
[1744926003844,26.05911696,134.31,134.26,26.0]
[1744926004043,26.05911696,134.31,134.27,11.93046074]
[1744926006657,26.05911696,134.31,134.28,11.93046074]
[1744926007453,26.05911696,134.31,134.29,11.93046074]
[1744926008457,18.61365497,134.31,134.28,11.93046074]
[1744926014246,26.05911696,134.31,134.27,11.93046074]
[1744926014959,26.05911696,134.31,134.28,11.93046074]
[1744926016258,26.05911696,134.31,134.29,11.93046074]
[1744926016459,18.61365497,134.31,134.3,11.93046074]
[1744926017661,18.61365497,134.31,134.29,11.93046074]
[1744926025369,18.61365497,134.31,134.27,0.14216157]
[1744926025568,18.61365497,134.31,134.29,11.93046074]
[1744926026767,18.61365497,134.31,134.3,11.93046074]
[1744926027268,18.61365497,134.31,134.29,11.93046074]
[1744926030649,18.61365497,134.31,134.28,11.93046074]
[1744926031381,18.61365497,134.31,134.29,11.93046074]
[1744926033477,7.47490768,134.32,134.3,11.93046074]
[1744926033678,7.47490768,134.32,134.31,11.93046074]
[1744926034785,0.03,134.32,134.31,11.93046074]
[1744926035476,0.03,134.32,134.31,12.07262231]
[1744926035777,0.03,134.32,134.31,12.35694545]
[1744926040490,0.03,134.32,134.31,38.35694545]
[1744926046078,0.03,134.32,134.31,44.17503777]
[1744926047390,0.03,134.32,134.31,68.03651002]
[1744926053294,0.03,134.32,134.31,49.38686116]
[1744926054491,0.03,134.32,134.31,68.03651002]
[1744926056967,0.03,134.32,134.31,82.95651002]
[1744926061679,0.03,134.32,134.31,56.95651002]
[1744926067699,0.03,134.35,134.34,0.14216157]
[1744926067906,0.03,134.35,134.34,12.07262231]
[1744926071292,0.03,134.35,134.34,26.97262231]
[1744926076109,0.03,134.35,134.34,71.90659431]
[1744926076412,0.03,134.35,134.34,77.11725383]
[1744926077606,0.03,134.37,134.36,26.28432314]
[1744926077795,0.03,134.37,134.36,38.21478388]
[1744926080517,0.03,134.37,134.36,82.2164782]
[1744926081716,0.03,134.37,134.36,37.93046074]
[1744926082118,0.03,134.37,134.36,38.07262231]
[1744926083004,0.03,134.37,134.36,12.07262231]
[1744926083209,0.03,134.37,134.36,38.07262231]
[1744926085008,0.03,134.37,134.32,3.71599524]
[1744926085214,7.8349,134.37,134.34,11.93046074]
[1744926085509,7.8349,134.37,134.33,14.9]
[1744926085690,26.48454886,134.37,134.32,3.71599524]
[1744926085891,11.93046074,134.33,134.32,3.71599524]
[1744926086093,7.8049,134.32,134.29,14.9]
[1744926086295,11.93046074,134.31,134.29,14.9]
[1744926086699,11.93046074,134.31,134.26,11.93046074]
[1744926087191,18.61504095,134.3,134.26,11.93046074]
[1744926087518,18.61504095,134.3,134.27,11.93046074]
[1744926090728,18.61504095,134.3,134.28,11.93046074]
[1744926107921,18.61504095,134.3,134.26,11.93046074]
[1744926109732,26.06105733,134.3,134.26,11.93046074]
[1744926110230,37.99151807,134.3,134.25,26.83046074]
[1744926111137,11.93046074,134.29,134.25,14.9]
[1744926111819,26.06493892,134.28,134.25,14.9]
[1744926113419,26.06493892,134.28,134.25,26.83046074]
[1744926113827,18.61781352,134.28,134.25,26.83046074]
[1744926115037,18.61781352,134.28,134.26,11.93046074]
[1744926115935,63.29113923,134.3,134.26,11.93046074]
[1744926117919,67.77558359,134.3,134.25,26.83046074]
[1744926118827,67.77558359,134.3,134.25,14.9]
[1744926118828,18.25576074,134.29,134.25,14.9]
[1744926119021,11.93046074,134.28,134.23,11.99346074]
[1744926119223,13.48616074,134.27,134.23,0.063]
[1744926119940,26.06882168,134.26,134.23,0.063]
[1744926125228,26.06882168,134.26,134.23,11.99346074]
[1744926126347,26.06882168,134.26,134.25,11.93046074]
[1744926127225,26.06882168,134.26,134.24,11.93046074]
[1744926128327,26.06882168,134.26,134.23,11.99346074]
[1744926140260,26.06882168,134.26,134.23,11.99346074]
[1744926155366,2.75933888,134.25,134.23,11.99346074]
[1744926156067,26.06882168,134.26,134.23,11.99346074]
[1744926158068,2.75995597,134.25,134.23,11.99346074]
[1744926158769,26.06882168,134.26,134.23,11.99346074]
[1744926160852,2.76140276,134.25,134.23,11.99346074]
[1744926161476,2.76140276,134.25,134.23,0.063]
[1744926161765,26.06882168,134.26,134.23,0.063]
[1744926161963,26.06882168,134.26,134.23,11.99346074]
[1744926162372,7.44823476,134.26,134.24,11.93046074]
[1744926163457,2.76450965,134.25,134.24,11.93046074]
[1744926164968,10.21329922,134.25,134.24,11.93046074]
[1744926167166,2.76450965,134.25,134.24,36.22113543]
[1744926167367,7.4472479,134.28,134.25,0.28432314]
[1744926167674,7.44601638,134.3,134.27,11.93046074]
[1744926167868,7.44601638,134.3,134.28,11.93046074]
[1744926168674,18.61497082,134.31,134.27,11.93046074]
[1744926168875,18.61497082,134.31,134.28,11.93046074]
[1744926170266,7.44490768,134.32,134.29,11.93046074]
[1744926170472,7.44490768,134.32,134.28,11.93046074]
[1744926171581,7.44490768,134.32,134.29,11.93046074]
[1744926173382,7.44490768,134.32,134.28,11.93046074]
[1744926177163,26.05717688,134.32,134.28,11.93046074]
[1744926177363,26.05717688,134.32,134.27,11.93046074]
[1744926178086,26.05717688,134.32,134.28,11.93046074]
[1744926189987,26.05717688,134.32,134.29,11.93046074]
[1744926191699,26.05717688,134.32,134.28,11.93046074]
[1744926195599,7.44490768,134.32,134.29,11.93046074]
[1744926210502,15.39859043,134.33,134.31,11.93046074]
[1744926212215,15.39859043,134.33,134.3,11.93046074]
[1744926218620,13.85549043,134.33,134.31,11.93046074]
[1744926219522,13.85549043,134.33,134.3,11.93046074]
[1744926221701,13.85549043,134.33,134.29,37.93046074]
[1744926227640,26.05329759,134.34,134.29,37.93046074]
[1744926227922,37.98375833,134.34,134.29,26.0]
[1744926228703,37.98375833,134.34,134.28,14.86]
[1744926228704,11.93046074,134.33,134.28,14.86]
[1744926228905,11.93046074,134.32,134.28,40.86]
[1744926229834,26.05911696,134.31,134.28,26.0]
[1744926230735,11.93046074,134.3,134.25,14.86]
[1744926230912,26.05911696,134.31,134.25,14.86]
[1744926230913,11.93046074,134.29,134.25,14.86]
[1744926231113,11.93046074,134.28,134.25,14.86]
[1744926231433,11.93046074,134.28,134.24,26.063]
[1744926231736,37.99734089,134.27,134.24,0.063]
[1744926231925,11.93046074,134.26,134.24,0.063]
[1744926233332,26.06688015,134.27,134.24,0.063]
[1744926233522,11.93046074,134.25,134.24,0.063]
[1744926233838,7.44878957,134.25,134.24,0.063]
[1744926236829,30.54966085,134.27,134.24,0.063]
[1744926238728,37.99734089,134.27,134.24,0.063]
[1744926239030,11.93046074,134.26,134.24,0.063]
[1744926240317,38.02889917,134.25,134.24,1e-08]
[1744926240527,62.70177309,134.25,134.22,1e-08]
[1744926240725,11.93046074,134.23,134.2,0.063]
[1744926241028,11.93046074,134.21,134.19,1e-08]
[1744926242045,37.93046074,134.22,134.19,1e-08]
[1744926242349,19.38147035,134.21,134.19,1e-08]
[1744926242515,30.5801096,134.2,134.17,1e-08]
[1744926242833,11.93046074,134.18,134.16,1e-08]
[1744926243943,7.45323097,134.17,134.16,1e-08]
[1744926245431,7.45323097,134.17,134.16,11.93046075]
[1744926245850,26.08294414,134.19,134.16,1e-08]
[1744926246040,26.08294414,134.19,134.16,11.93046075]
[1744926246218,26.08294414,134.19,134.17,11.93046074]
[1744926247124,7.45212012,134.19,134.18,11.93046074]
[1744926248031,18.6274622,134.22,134.18,11.93046074]
[1744926248940,18.6274622,134.22,134.17,11.93046074]
[1744926249142,26.07791667,134.22,134.17,11.93046074]
[1744926252744,38.00837741,134.22,134.16,26.81046075]
[1744926260525,11.93046074,134.21,134.16,26.81046075]
[1744926260742,11.93046074,134.2,134.16,14.88000001]
[1744926262845,7.45212012,134.19,134.16,14.88000001]
[1744926263228,26.08242044,134.19,134.16,14.88000001]
[1744926265045,18.63030032,134.19,134.16,14.88000001]
[1744926265550,18.63030032,134.19,134.16,26.81046075]
[1744926267153,38.00899437,134.21,134.16,14.88000001]
[1744926267733,26.07853363,134.21,134.16,26.81046075]
[1744926269658,37.25227238,134.22,134.16,26.81046075]
[1744926269846,49.18273312,134.22,134.16,26.81046075]
[1744926270459,37.25227238,134.22,134.16,26.81046075]
[1744926270653,49.18273312,134.22,134.16,26.81046075]
[1744926272436,26.07659066,134.22,134.18,11.93046074]
[1744926273436,18.62613619,134.22,134.18,11.93046074]
[1744926276243,18.62613619,134.22,134.17,11.93046074]
[1744926276443,26.07659066,134.22,134.17,11.93046074]
[1744926279870,26.07659066,134.22,134.18,11.93046074]
[1744926281970,26.07659066,134.22,134.17,11.93046074]
[1744926286680,26.07659066,134.22,134.16,14.88000001]
[1744926286971,26.07659066,134.22,134.17,11.93046074]
[1744926288079,38.0070514,134.22,134.16,26.81046075]
[1744926288664,26.07659066,134.22,134.17,11.93046074]
[1744926288863,18.62613619,134.22,134.17,11.93046074]
[1744926290175,18.62613619,134.22,134.18,11.93046074]
[1744926290562,18.62613619,134.22,134.18,26.79046074]
[1744926294286,18.62613619,134.22,134.18,14.86]
[1744926294593,18.62613619,134.22,134.18,26.79046074]
[1744926296091,26.07659066,134.22,134.18,26.79046074]
[1744926297992,18.62613619,134.22,134.18,26.79046074]
[1744926299993,18.62613619,134.22,134.19,11.93046074]
[1744926300382,7.44989942,134.23,134.2,11.93046074]
[1744926301097,7.44823476,134.26,134.21,11.93046074]
[1744926301307,7.44823476,134.26,134.22,11.93046074]
[1744926301473,26.06882168,134.26,134.21,11.93046074]
[1744926301968,26.06882168,134.26,134.22,11.93046074]
[1744926302184,2.76225867,134.25,134.22,11.93046074]
[1744926303077,26.06882168,134.26,134.22,11.93046074]
[1744926304590,7.44823476,134.26,134.23,11.93046074]
[1744926304890,7.44823476,134.26,134.23,26.79046074]
[1744926305897,7.44823476,134.26,134.24,11.93046074]
[1744926306093,26.09523679,134.28,134.24,11.93046074]
[1744926306399,26.09523679,134.28,134.25,11.93046074]
[1744926306698,7.4771254,134.28,134.25,11.93046074]
[1744926307778,7.4771254,134.28,134.26,11.93046074]
[1744926308179,0.03,134.28,134.26,11.93046074]
[1744926310100,0.03,134.28,134.27,11.93046074]
[1744926310402,0.03,134.28,134.27,12.07262231]
[1744926312003,0.03,134.28,134.27,38.07262231]
[1744926315597,0.03,134.28,134.27,57.00659431]
[1744926323111,0.03,134.28,134.27,71.86659431]
[1744926332721,0.03,134.28,134.27,53.21694545]
[1744926334823,0.03,134.28,134.27,58.43032148]
[1744926336521,0.03,134.28,134.27,32.43032148]
[1744926342733,0.03,134.32,134.3,26.0]
[1744926342934,0.03,134.32,134.3,37.93046074]
[1744926346228,0.03,134.32,134.3,26.0]
[1744926346429,0.03,134.32,134.3,37.93046074]
[1744926348029,0.03,134.32,134.31,14.84]
[1744926352429,0.03,134.32,134.31,26.91262231]
[1744926354212,0.03,134.32,134.31,32.40876884]
[1744926357730,0.03,134.32,134.31,27.19694545]
[1744926358237,0.03,134.32,134.31,51.0584177]
[1744926358442,0.03,134.32,134.31,71.0584177]
[1744926362039,0.03,134.36,134.33,26.0]
[1744926362247,0.03,134.36,134.35,12.35694545]
[1744926368844,0.03,134.36,134.35,38.35694545]
[1744926369860,0.03,134.36,134.35,43.56721712]
[1744926370956,0.03,134.36,134.35,38.35694545]
[1744926372559,0.03,134.36,134.35,43.56721712]
[1744926373553,0.03,134.36,134.35,17.56721712]
[1744926375449,0.03,134.37,134.36,0.28432314]
[1744926375755,0.03,134.37,134.36,71.0364782]
[1744926380366,0.03,134.38,134.37,19.07613357]
[1744926380659,0.03,134.38,134.37,31.00659431]
[1744926381968,0.03,134.38,134.37,36.21609047]
[1744926384465,2.0685165,134.4,134.39,12.07262231]
[1744926384849,2.0685165,134.4,134.39,34.68386264]
[1744926385051,2.0685165,134.4,134.39,82.4057056]
[1744926385369,2.0685165,134.4,134.39,165.3057056]
[1744926385556,0.03,134.41,134.4,39.07613357]
[1744926385745,0.03,134.41,134.4,98.72843727]
[1744926385947,0.03,134.41,134.4,118.7567706]
[1744926386166,0.03,134.42,134.41,0.14216157]
[1744926386369,0.03,134.45,134.44,0.14216157]
[1744926386549,0.03,134.45,134.44,12.07262231]
[1744926393273,0.03,134.46,134.45,26.28432314]
[1744926393578,7.43604997,134.48,134.46,0.14216157]
[1744926394560,14.10122408,134.49,134.46,0.14216157]
[1744926394855,7.43562408,134.49,134.48,11.93046074]
[1744926399981,7.46507658,134.5,134.48,12.07262231]
[1744926400160,7.46507658,134.5,134.49,11.93046074]
[1744926401782,0.03,134.5,134.49,12.07262231]
[1744926404267,0.03,134.5,134.49,12.35694545]
[1744926405570,0.03,134.5,134.49,36.21144225]
[1744926408984,0.03,134.5,134.49,119.11144225]
[1744926409991,0.03,134.51,134.5,65.07613357]
[1744926410192,0.03,134.51,134.5,91.82659431]
[1744926411188,0.03,134.51,134.5,97.03105527]
[1744926411392,0.03,134.56,134.55,11.93046074]
[1744926411594,0.03,134.56,134.55,26.75046074]
[1744926413993,0.03,134.56,134.55,26.89262231]
[1744926415885,0.03,134.56,134.55,27.17694545]
[1744926416081,0.03,134.56,134.55,14.8]
[1744926416485,0.03,134.56,134.55,26.73046074]
[1744926417770,0.03,134.56,134.55,26.87262231]
[1744926419189,0.03,134.56,134.55,26.73046074]
[1744926420170,0.03,134.56,134.55,27.01478388]
[1744926420384,0.03,134.56,134.55,27.15694545]
[1744926422786,0.03,134.56,134.55,45.80659431]
[1744926423593,0.03,134.56,134.55,49.50240784]
[1744926426696,7.42886858,134.61,134.56,39.07613357]
[1744926426901,7.42886858,134.61,134.59,11.93046074]
[1744926427201,7.42886858,134.61,134.56,20.42648471]
[1744926427202,7.42886858,134.61,134.6,26.87262231]
[1744926427780,7.42886858,134.61,134.6,14.8]
[1744926429296,7.42886858,134.61,134.6,26.87262231]
[1744926431919,13.6551647,134.62,134.61,0.14216157]
[1744926432105,13.6551647,134.62,134.61,12.07262231]
[1744926432904,13.6551647,134.62,134.61,0.14216157]
[1744926433211,13.6551647,134.62,134.61,12.07262231]
[1744926435496,7.4584647,134.62,134.61,12.07262231]
[1744926436094,7.4584647,134.62,134.6,52.73046074]
[1744926436296,7.4584647,134.62,134.6,26.0]
[1744926436614,7.4584647,134.62,134.61,14.8]
[1744926440817,7.4584647,134.62,134.6,26.0]
[1744926441120,7.4584647,134.62,134.6,40.8]
[1744926443118,7.4584647,134.62,134.6,52.73046074]
[1744926445528,7.4584647,134.62,134.6,26.73046074]
[1744926449931,7.4584647,134.62,134.61,11.93046074]
[1744926451924,7.4584647,134.62,134.6,26.73046074]
[1744926452305,7.4584647,134.62,134.61,11.93046074]
[1744926453030,7.4584647,134.62,134.6,26.73046074]
[1744926457436,7.4584647,134.62,134.61,11.93046074]
[1744926458131,0.03,134.62,134.61,12.07262231]
[1744926458335,0.03,134.62,134.61,12.35694545]
[1744926460848,0.03,134.62,134.61,0.42648471]
[1744926461131,0.03,134.62,134.61,12.35694545]
[1744926478947,0.03,134.62,134.61,27.23694545]
[1744926482547,0.03,134.62,134.61,118.06575841]
[1744926483339,10.01029647,134.67,134.64,26.0]
[1744926483539,2.58465,134.67,134.66,12.21478388]
[1744926483742,2.58465,134.67,134.66,27.09478388]
[1744926484648,2.58465,134.67,134.66,26.81046074]
[1744926484849,2.58465,134.67,134.66,27.09478388]
[1744926491657,2.58465,134.67,134.66,15.16432314]
[1744926491863,2.58465,134.67,134.66,27.09478388]
[1744926495566,2.58465,134.67,134.66,53.09478388]
[1744926496666,2.58465,134.67,134.66,27.09478388]
[1744926498670,2.58465,134.67,134.66,53.09478388]
[1744926508070,2.58465,134.67,134.66,38.07262231]
[1744926508071,10.01020877,134.67,134.66,38.07262231]
[1744926508272,10.01020877,134.67,134.65,0.14216157]
[1744926508273,10.01020877,134.67,134.65,14.78]
[1744926512876,28.5741057,134.67,134.63,11.93046074]
[1744926513055,28.5741057,134.67,134.63,14.78]
[1744926513056,11.93046074,134.66,134.63,14.78]
[1744926513467,18.41256074,134.65,134.63,14.78]
[1744926513776,1.5524,134.64,134.63,14.78]
[1744926514272,13.48286074,134.64,134.62,231.38]
[1744926514473,13.48286074,134.64,134.61,14.78]
[1744926515080,7.42776498,134.63,134.61,14.78]
[1744926516667,7.42776498,134.63,134.58,11.93046074]
[1744926516668,37.92763818,134.63,134.58,11.93046074]